bitfinex-derivatives/quotes_SOLF0:USTF0_20250924
["timestamp","ask_amount","ask_price","bid_price","bid_amount"]
[1758731759690,7.86,214.02,213.98,2.15171213]
[1758731759888,23.6,214.07,213.98,2.15171213]
[1758731760191,7.86,214.03,213.98,2.15171213]
[1758731760393,4.2028,214.04,213.98,2.15171213]
[1758731760895,7.86,214.03,213.94,4.2045]
[1758731761096,7.86,214.03,213.97,2.15171213]
[1758731762595,12.0631,214.03,213.97,2.15171213]
[1758731764997,12.0631,214.03,213.95,2.15171213]
[1758731765199,4.2033,214.02,213.95,2.15171213]
[1758731765393,7.86,214.01,213.93,2.15171213]
[1758731765599,2.15171213,213.98,213.89,9.62171213]
[1758731765797,7.86,213.97,213.89,9.62171213]
[1758731766202,12.0643,213.97,213.89,13.82741213]
[1758731767697,7.86,213.95,213.87,6.35771213]
[1758731769000,126.09171213,214.0,213.91,2.15171213]
[1758731769304,126.09171213,214.0,213.89,65.4203]
[1758731769305,123.94,214.0,213.93,2.15171213]
[1758731769702,2.15171213,213.99,213.89,2.15171213]
[1758731769900,2.15171213,213.97,213.89,2.15171213]
[1758731770204,7.86,213.98,213.92,7.47]
[1758731770500,116.12,214.04,213.96,7.47]
[1758731770807,116.12,214.04,213.99,9.62171213]
[1758731771002,7.86,214.03,213.99,7.47]
[1758731771505,116.12,214.04,213.98,9.62171213]
[1758731771703,7.86,214.07,214.04,4.2026]
[1758731771900,2.15171213,214.09,213.96,65.4011]
[1758731772204,10.01171213,214.09,213.99,2.15171213]
[1758731772403,10.01171213,214.09,214.01,2.15171213]
[1758731772602,7.86,214.09,214.03,2.15171213]
[1758731773208,7.86,214.09,214.03,9.62171213]
[1758731773607,0.81337868,214.1,214.05,9.62171213]
[1758731773803,54.76,214.11,214.06,11.6722]
[1758731774107,62.62,214.11,214.06,11.6722]
[1758731774303,54.76,214.11,214.07,9.62171213]
[1758731774509,54.76,214.11,214.08,11.6719]
[1758731775204,7.86,214.15,214.08,11.6719]
[1758731775205,7.86,214.15,214.08,4.2019]
[1758731775613,7.86,214.15,214.09,2.15171213]
[1758731777310,7.86,214.15,214.07,7.47]
[1758731777512,2.15171213,214.14,214.03,7.47]
[1758731777715,7.86,214.11,214.03,7.47]
[1758731778616,7.86,214.11,214.06,2.15171213]
[1758731778816,7.86,214.11,214.06,9.62171213]
[1758731779316,7.86,214.11,214.06,7.47]
[1758731779517,126.23171213,214.12,214.03,7.47]
[1758731779815,126.23171213,214.12,214.03,9.62171213]
[1758731781216,126.23171213,214.12,214.04,4.2027]
[1758731782317,7.86,214.09,214.01,6.35501213]
[1758731782521,2.15171213,214.08,213.99,2.15171213]
[1758731782709,7.86,214.07,213.99,2.15171213]
[1758731783620,7.86,214.07,214.0,4.2035]
[1758731785523,2.15171213,214.06,213.98,7.47]
[1758731785821,7.3,214.05,213.98,7.47]
[1758731787120,7.3,214.05,213.97,4.204]
[1758731787319,2.15171213,214.04,213.97,4.204]
[1758731788022,7.3,214.03,213.95,4.2045]
[1758731788215,2.15171213,214.02,213.95,4.2045]
[1758731790122,2.15171213,214.02,213.96,4.2041]
[1758731791018,2.15171213,214.02,213.94,12.1547]
[1758731791219,2.15171213,214.0,213.94,4.2047]
[1758731793613,2.15171213,214.0,213.93,7.95]
[1758731794526,9.45171213,213.98,213.92,4.2051]
[1758731795119,9.45171213,213.98,213.89,12.1555]
[1758731795622,9.45171213,213.98,213.89,7.95]
[1758731795813,9.45171213,213.98,213.9,4.2053]
[1758731796014,7.3,213.95,213.89,7.95]
[1758731797320,7.3,213.95,213.89,12.1555]
[1758731799332,7.3,213.95,213.89,4.2055]
[1758731799524,7.3,213.95,213.86,7.95]
[1758731799825,9.45171213,213.92,213.86,12.1561]
[1758731800218,9.45171213,213.92,213.86,7.95]
[1758731802528,2.15171213,213.94,213.86,7.95]
[1758731803226,2.15171213,213.94,213.88,4.2058]
[1758731803624,2.15171213,213.98,213.89,7.95]
[1758731804528,6.35581213,213.98,213.91,4.2053]
[1758731804726,2.15171213,213.96,213.85,10.10171213]
[1758731804921,2.15171213,213.94,213.85,10.10171213]
[1758731805625,2.15171213,213.96,213.88,7.95]
[1758731807027,2.15171213,213.96,213.89,4.2055]
[1758731807824,2.15171213,213.96,213.9,4.2053]
[1758731809534,2.15171213,213.96,213.9,4.2053]
[1758731809726,2.15171213,213.94,213.9,4.2053]
[1758731810234,9.45171213,213.96,213.92,7.95]
[1758731810435,2.15171213,213.94,213.87,7.95]
[1758731810630,2.15171213,213.94,213.89,4.2056]
[1758731810933,7.3,213.93,213.89,4.2056]
[1758731812635,2.15171213,213.91,213.83,7.95]
[1758731813025,2.15171213,213.93,213.83,2.15171213]
[1758731813230,2.15171213,213.93,213.84,7.95]
[1758731814237,2.15171213,213.93,213.87,4.2059]
[1758731814738,11.5048,213.94,213.87,4.2059]
[1758731815138,4.205,213.93,213.87,4.2059]
[1758731815532,7.22,213.92,213.85,4.2064]
[1758731817236,11.4252,213.92,213.85,4.2064]
[1758731818938,11.4252,213.92,213.86,4.2062]
[1758731819440,7.22,213.92,213.83,7.23]
[1758731821439,4.2048,213.94,213.74,7.82]
[1758731821440,3.3664819,213.88,213.74,7.82]
[1758731821639,7.61,213.84,213.75,4.2083]
[1758731822044,11.8168,213.84,213.75,4.2083]
[1758731822737,4.207,213.83,213.75,4.2083]
[1758731825539,4.2073,213.81,213.74,7.82]
[1758731825736,11.8173,213.81,213.74,7.82]
[1758731826146,7.61,213.81,213.74,7.82]
[1758731827350,4.2075,213.8,213.74,7.82]
[1758731827848,3.3664819,213.82,213.7,7.82]
[1758731827849,3.3664819,213.79,213.7,7.82]
[1758731828043,7.61,213.78,213.7,7.82]
[1758731828247,4.2074,213.81,213.7,7.82]
[1758731829346,7.61,213.82,213.71,7.82]
[1758731829553,69.26,213.83,213.74,7.82]
[1758731830452,76.87,213.83,213.78,12.0277]
[1758731830849,7.61,213.82,213.78,7.82]
[1758731831048,7.61,213.82,213.75,4.2084]
[1758731832553,10.9764819,213.82,213.75,4.2084]
[1758731832753,10.9764819,213.82,213.73,7.82]
[1758731833047,7.61,213.82,213.73,7.82]
[1758731833254,7.61,213.82,213.74,4.2085]
[1758731833853,13.71306719,213.85,213.73,7.82]
[1758731834058,116.0,213.85,213.73,7.82]
[1758731834349,116.0,213.85,213.78,4.2077]
[1758731834551,7.61,213.9,213.78,7.82]
[1758731834755,7.61,213.9,213.79,7.82]
[1758731834956,11.8155,213.9,213.83,4.2069]
[1758731835153,7.61,213.9,213.83,4.2069]
[1758731835457,7.61,213.9,213.82,7.82]
[1758731837264,11.8157,213.9,213.82,7.82]
[1758731837655,7.61,213.9,213.82,7.82]
[1758731837861,7.61,213.89,213.77,12.0279]
[1758731838061,7.61,213.89,213.77,7.82]
[1758731840154,4.206,213.88,213.79,4.2076]
[1758731840354,4.206,213.88,213.8,7.82]
[1758731840555,7.61,213.89,213.8,7.82]
[1758731842164,7.61,213.89,213.81,4.2073]
[1758731842766,7.61,213.89,213.8,7.82]
[1758731843565,7.61,213.89,213.8,12.0273]
[1758731844975,7.6,213.86,213.78,4.2078]
[1758731845157,7.6,213.86,213.79,7.47]
[1758731845357,3.3664819,213.89,213.79,7.47]
[1758731845563,7.6,213.9,213.79,7.47]
[1758731846262,59.96,213.92,213.79,7.47]
[1758731846463,59.96,213.92,213.8,7.47]
[1758731846868,59.96,213.92,213.86,4.2063]
[1758731847766,59.96,213.92,213.82,65.4433]
[1758731847964,59.96,213.92,213.85,7.47]
[1758731849264,59.96,213.92,213.88,7.47]
[1758731850072,59.96,213.92,213.85,4.2065]
[1758731850368,59.96,213.92,213.84,7.47]
[1758731850672,7.6,213.93,213.84,7.47]
[1758731851172,7.6,213.93,213.87,4.2059]
[1758731853175,7.6,213.93,213.88,4.2058]
[1758731853378,7.6,213.93,213.88,11.6758]
[1758731853674,11.8047,213.95,213.88,7.47]
[1758731853875,7.6,213.95,213.86,4.2062]
[1758731854477,4.2051,213.93,213.84,7.47]
[1758731854777,7.6,213.95,213.84,7.47]
[1758731856181,4.2053,213.92,213.85,4.2063]
[1758731858678,11.8053,213.92,213.85,4.2063]
[1758731861291,11.8053,213.92,213.86,4.2061]
[1758731862086,7.6,213.92,213.86,4.2061]
[1758731863379,14.21618024,213.98,213.78,164.2754]
[1758731863380,7.6,213.99,213.87,65.4287]
[1758731863580,7.6,213.99,213.89,7.47]
[1758731864581,7.6,213.99,213.91,4.2053]
[1758731865786,7.6,213.99,213.92,4.205]
[1758731865787,11.8038,213.99,213.92,4.205]
[1758731868389,7.6,213.99,213.9,4.2055]
[1758731869092,7.6,213.95,213.89,7.47]
[1758731870190,7.6,213.95,213.89,11.6756]
[1758731870191,11.8047,213.95,213.89,11.6756]
[1758731873190,11.8047,213.95,213.89,4.2056]
[1758731875597,11.8047,213.95,213.87,11.636]
[1758731876597,13.95898616,213.95,213.87,11.636]
[1758731878098,11.8047,213.95,213.87,11.636]
[1758731878393,2.15428616,213.91,213.81,2.15428616]
[1758731878597,9.60428616,213.91,213.82,7.43]
[1758731879001,7.45,213.97,213.89,7.43]
[1758731879196,9.60428616,214.0,213.92,2.15428616]
[1758731880199,9.60428616,214.0,213.93,7.82]
[1758731880200,7.45,214.0,213.93,7.82]
[1758731880788,7.45,214.0,213.93,12.0249]
[1758731881501,7.45,214.0,213.94,4.2045]
[1758731881702,9.74428616,214.04,213.96,2.15428616]
[1758731882299,13.94718616,214.04,213.97,4.204]
[1758731882999,13.94718616,214.04,213.99,4.2037]
[1758731883000,7.59,214.04,213.99,4.2037]
[1758731883204,460.3022,214.07,213.99,4.2037]
[1758731883205,2.15428616,214.05,213.99,4.2037]
[1758731883600,2.15428616,214.05,213.96,2.15428616]
[1758731883997,7.59,214.06,213.96,2.15428616]
[1758731884202,9.74428616,214.06,213.96,2.15428616]
[1758731884503,4.2027,214.05,213.97,4.2041]
[1758731884701,7.59,214.03,213.95,7.82]
[1758731885503,2.15428616,214.02,213.95,7.82]
[1758731885805,7.59,214.01,213.95,7.82]
[1758731891203,11.7928,214.04,213.96,2.15428616]
[1758731891407,11.7928,214.04,213.97,7.82]
[1758731891604,11.7928,214.04,213.98,2.15428616]
[1758731891803,4.2024,214.06,213.99,7.82]
[1758731892000,340.36,214.07,214.0,2.15428616]
[1758731892199,4.2014,214.11,214.05,7.82]
[1758731892507,7.59,214.08,214.01,7.82]
[1758731893713,7.59,214.08,214.0,2.15428616]
[1758731893911,7.59,214.08,214.0,9.97428616]
[1758731895206,7.59,214.08,214.0,7.82]
[1758731895409,7.59,214.08,214.0,9.97428616]
[1758731895811,11.7921,214.08,214.0,9.97428616]
[1758731897014,4.2023,214.07,214.0,7.82]
[1758731897211,7.59,214.06,213.96,4.2041]
[1758731897410,65.353,214.12,213.99,2.15428616]
[1758731897411,2.15428616,214.09,213.99,2.15428616]
[1758731897711,65.353,214.12,214.02,7.82]
[1758731897712,4.2016,214.1,214.02,7.82]
[1758731897913,4.2016,214.1,214.03,2.15428616]
[1758731899015,4.2016,214.1,214.02,7.82]
[1758731899403,4.202,214.08,214.02,9.97428616]
[1758731899612,4.202,214.08,214.0,2.15428616]
[1758731899807,7.59,214.07,214.0,2.15428616]
[1758731900916,7.59,214.07,214.0,9.97428616]
[1758731901119,7.59,214.07,214.0,14.17768616]
[1758731901710,11.7916,214.1,214.02,9.97428616]
[1758731901906,7.59,214.1,214.02,9.97428616]
[1758731902311,7.59,214.1,214.05,4.2025]
[1758731902518,7.59,214.1,214.06,7.82]
[1758731904521,7.72,214.1,213.98,7.33]
[1758731904719,7.72,214.06,213.98,7.33]
[1758731904921,2.15428616,214.05,213.98,7.33]
[1758731905617,7.72,214.06,213.98,9.48428616]
[1758731906113,4.2018,214.09,214.0,2.15428616]
[1758731906318,4.2018,214.09,214.01,7.33]
[1758731907313,4.2018,214.09,214.01,11.5332]
[1758731907619,123.2,214.1,214.03,7.33]
[1758731907821,115.48,214.1,214.06,7.33]
[1758731908020,115.48,214.1,214.04,2.15428616]
[1758731908321,115.48,214.1,214.05,7.33]
[1758731908520,115.48,214.1,214.04,2.15428616]
[1758731908710,115.48,214.1,214.04,9.48428616]
[1758731909415,115.48,214.1,214.01,65.3853]
[1758731909416,7.72,214.19,214.09,2.15428616]
[1758731909619,2.15428616,214.18,214.09,2.15428616]
[1758731910221,7.72,214.19,214.09,2.15428616]
[1758731910518,7.72,214.19,214.08,7.33]
[1758731910717,9.87428616,214.19,214.1,2.15428616]
[1758731910914,14.07428616,214.19,214.11,11.5312]
[1758731911317,7.72,214.19,214.11,7.33]
[1758731911818,7.72,214.19,214.12,4.201]
[1758731912323,7.72,214.17,214.08,2.15428616]
[1758731912618,11.9203,214.17,214.08,2.15428616]
[1758731913417,4.2005,214.16,214.08,6.35608616]
[1758731914219,4.2005,214.16,214.1,2.15428616]
[1758731914417,7.72,214.15,214.1,2.15428616]
[1758731914722,11.9205,214.16,214.1,2.15428616]
[1758731916916,11.9205,214.16,214.07,7.33]
[1758731917215,9.87428616,214.16,214.07,2.15428616]
[1758731918210,4.2009,214.14,214.07,2.15428616]
[1758731918814,4.2007,214.15,214.07,2.15428616]
[1758731919019,9.87428616,214.16,214.07,2.15428616]
[1758731919522,9.87428616,214.16,214.06,4.2024]
[1758731919717,7.72,214.13,214.06,2.15428616]
[1758731919910,7.72,214.11,214.02,2.15428616]
[1758731920317,7.72,214.11,214.04,2.15428616]
[1758731921316,7.72,214.11,214.07,7.33]
[1758731921619,7.72,214.15,214.08,2.15428616]
[1758731922313,9.87428616,214.15,214.07,4.2021]
[1758731922516,2.15428616,214.13,214.06,9.48428616]
[1758731922712,7.72,214.12,214.06,9.48428616]
[1758731922916,7.72,214.12,214.08,7.33]
[1758731923314,2.15428616,214.15,214.07,4.2021]
[1758731923315,7.72,214.14,214.07,4.2021]
[1758731923518,2.15428616,214.13,214.07,4.2021]
[1758731924819,7.72,214.14,214.07,4.2021]
[1758731926421,71.31618323,214.21,214.08,9.48428616]
[1758731926422,6.35448616,214.17,214.08,9.48428616]
[1758731927326,6.35448616,214.17,214.09,4.2016]
[1758731927829,4.2005,214.16,214.09,4.2016]
[1758731928020,9.87428616,214.15,214.08,7.33]
[1758731928227,4.2009,214.14,214.06,9.48428616]
[1758731928925,4.2009,214.14,214.07,4.202]
[1758731929331,9.87428616,214.15,214.08,4.2018]
[1758731931032,7.72,214.14,214.06,9.48428616]
[1758731932232,11.9209,214.14,214.07,4.202]
[1758731932431,7.72,214.14,214.08,2.15428616]
[1758731933333,7.72,214.14,214.08,6.35608616]
[1758731933734,7.72,214.14,214.08,13.73608616]
[1758731933934,7.72,214.14,214.06,6.35658616]
[1758731934238,9.87428616,214.14,214.04,9.53428616]
[1758731934432,4.2011,214.13,214.04,9.53428616]
[1758731934934,9.87428616,214.14,214.04,9.53428616]
[1758731935129,4.2015,214.11,214.04,9.53428616]
[1758731935836,9.87428616,214.14,214.04,13.73688616]
[1758731936026,4.2013,214.12,214.04,13.73688616]
[1758731936726,4.2013,214.12,214.05,4.2024]
[1758731937136,11.9209,214.14,214.04,9.53428616]
[1758731937333,7.21,214.18,214.08,6.35608616]
[1758731937637,2.15428616,214.17,214.08,6.35608616]
[1758731937828,4.2007,214.15,214.08,6.35608616]
[1758731938029,11.4107,214.15,214.08,6.35608616]
[1758731938535,11.4107,214.15,214.08,4.2018]
[1758731939931,11.4107,214.15,214.07,7.38]
[1758731940139,7.21,214.15,214.07,7.38]
[1758731941242,7.21,214.15,214.09,4.2016]
[1758731941636,111.3499,214.19,214.13,4.201]
[1758731941944,7.73,214.19,214.13,4.201]
[1758731942943,7.73,214.19,214.14,4.2007]
[1758731943143,0.81296065,214.21,214.15,7.88]
[1758731943340,7.73,214.22,214.17,4.2]
[1758731943545,7.73,214.22,214.18,7.88]
[1758731943742,7.73,214.22,214.13,3.35956251]
[1758731943945,7.73,214.22,214.15,4.2004]
[1758731944145,7.73,214.22,214.14,7.88]
[1758731944652,11.9293,214.22,214.14,7.88]
[1758731944946,7.73,214.22,214.14,7.88]
[1758731945145,7.73,214.18,214.1,7.88]
[1758731946251,11.9301,214.18,214.11,4.2013]
[1758731947142,7.73,214.18,214.1,7.88]
[1758731947448,7.73,214.22,214.13,7.88]
[1758731948046,7.73,214.22,214.12,4.201]
[1758731948437,4.2002,214.18,214.12,4.201]
[1758731948638,11.9302,214.18,214.1,4.2015]
[1758731948943,11.9302,214.18,214.09,11.23956251]
[1758731949253,4.2005,214.16,214.09,7.88]
[1758731949550,4.2009,214.14,214.06,3.35956251]
[1758731949948,7.73,214.15,214.07,4.202]
[1758731950149,7.73,214.15,214.07,7.88]
[1758731950750,7.73,214.15,214.07,12.0821]
[1758731951250,7.73,214.15,214.07,7.88]
[1758731951451,4.2011,214.13,214.07,7.88]
[1758731951847,7.73,214.15,214.07,7.88]
[1758731953245,11.9307,214.15,214.07,7.88]
[1758731954149,11.9307,214.15,214.08,4.2018]
[1758731955844,7.73,214.15,214.07,7.88]
[1758731956854,7.73,214.14,214.07,7.88]
[1758731958255,7.73,214.14,214.03,7.88]
[1758731958556,7.73,214.12,214.03,7.88]
[1758731958750,1.16787751,214.11,214.03,7.88]
[1758731958950,1.16787751,214.1,214.03,7.88]
[1758731959155,7.73,214.12,214.07,4.202]
[1758731959364,1.16783958,214.11,214.07,4.202]
[1758731959667,1.16783958,214.11,214.04,3.35956251]
[1758731959668,11.9307,214.15,214.08,4.202]
[1758731959854,1.16773558,214.14,214.08,4.202]
[1758731960059,7.73,214.12,214.08,4.202]
[1758731960358,4.2007,214.15,214.09,12.0816]
[1758731960663,7.73,214.13,214.09,12.0816]
[1758731960863,1.16773571,214.12,214.09,12.0816]
[1758731961063,7.73,214.13,214.09,12.0816]
[1758731961258,1.16773184,214.12,214.09,12.0816]
[1758731961459,7.73,214.13,214.09,12.0816]
[1758731961763,1.16772768,214.12,214.09,7.88]
[1758731961964,1.16772768,214.11,214.09,7.88]
[1758731962155,7.73,214.13,214.09,7.88]
[1758731962358,1.16772782,214.12,214.1,4.2016]
[1758731962663,11.9303,214.17,214.1,7.88]
[1758731962858,1.16762367,214.16,214.1,7.88]
[1758731963055,12.90732258,214.21,214.14,12.0806]
[1758731963256,1.16751479,214.2,214.14,7.88]
[1758731963562,1.16751479,214.19,214.12,7.88]
[1758731963763,7.73,214.21,214.12,7.88]
[1758731963764,1.16751479,214.18,214.12,7.88]
[1758731963954,1.16751479,214.17,214.11,65.3549]
[1758731964158,7.73,214.21,214.12,7.94]
[1758731964358,1.16743191,214.2,214.12,7.94]
[1758731964661,1.16743191,214.19,214.12,7.94]
[1758731964861,1.16743191,214.18,214.12,7.94]
[1758731965064,1.16743191,214.17,214.12,7.94]
[1758731965264,7.73,214.21,214.16,12.1402]
[1758731965461,1.16743191,214.2,214.16,12.1402]
[1758731965660,1.16743191,214.19,214.16,4.2002]
[1758731965860,1.16743191,214.18,214.16,12.1402]
[1758731966161,4.1994,214.22,214.16,12.1402]
[1758731966462,8.94739464,214.21,214.16,12.1402]
[1758731966662,1.16739464,214.2,214.17,7.94]
[1758731966861,1.16739464,214.19,214.17,7.94]
[1758731967062,1.16739464,214.18,214.17,7.94]
[1758731967864,7.78,214.21,214.17,7.94]
[1758731968061,1.16734903,214.2,214.17,12.14]
[1758731968262,59.56,214.24,214.18,7.94]
[1758731968562,1.16726617,214.23,214.17,7.94]
[1758731968765,1.16726617,214.22,214.19,7.94]
[1758731968960,1.16726617,214.21,214.19,7.94]
[1758731969156,1.16726617,214.2,214.19,7.94]
[1758731971069,352.0386,214.26,214.19,7.94]
[1758731971270,1.16722898,214.25,214.19,7.94]
[1758731971468,1.16722898,214.24,214.19,7.94]
[1758731971669,1.16722898,214.23,214.13,68.70696251]
[1758731971870,1.16722898,214.22,214.14,7.94]
[1758731972168,1.16722898,214.21,214.14,7.94]
[1758731972374,7.78,214.24,214.14,7.94]
[1758731972571,1.16722898,214.23,214.14,7.94]
[1758731972766,1.16722898,214.22,214.14,7.94]
[1758731972967,1.16722898,214.21,214.14,7.94]
[1758731973165,7.78,214.24,214.14,7.94]
[1758731973360,1.16722898,214.23,214.15,7.94]
[1758731973566,1.16722898,214.22,214.16,3.35956251]
[1758731973769,7.78,214.24,214.17,7.94]
[1758731973968,1.16720336,214.23,214.17,7.94]
[1758731974270,344.2584,214.26,214.17,7.94]
[1758731974465,1.16719502,214.25,214.17,7.94]
[1758731974664,1.16719502,214.24,214.17,7.94]
[1758731974875,344.2584,214.26,214.17,7.94]
[1758731975175,1.16715777,214.25,214.19,4.1997]
[1758731975469,1.16715777,214.25,214.17,7.94]
[1758731975470,1.16715777,214.24,214.17,7.94]
[1758731975675,122.94,214.28,214.17,7.94]
[1758731975869,1.16712797,214.27,214.17,7.94]
[1758731976065,1.16712797,214.26,214.17,7.94]
[1758731976272,122.94,214.28,214.17,7.94]
[1758731976273,1.16712797,214.25,214.17,7.94]
[1758731976576,1.16712797,214.24,214.17,7.94]
[1758731976876,7.78,214.28,214.22,4.1991]
[1758731977078,4.1978,214.3,214.22,4.1991]
[1758731977079,1.16701536,214.27,214.22,4.1991]
[1758731977375,115.14,214.29,214.22,7.94]
[1758731977577,1.16698853,214.28,214.22,7.94]
[1758731977773,1.16698853,214.27,214.2,7.94]
[1758731977969,115.14,214.29,214.2,7.94]
[1758731978172,1.16698798,214.28,214.22,4.1991]
[1758731978477,7.78,214.26,214.22,12.1391]
[1758731979472,7.78,214.26,214.23,7.94]
[1758731979676,122.92,214.29,214.23,7.94]
[1758731979981,7.78,214.27,214.23,7.94]
[1758731981281,7.78,214.27,214.22,4.1991]
[1758731981484,115.14,214.29,214.23,12.1389]
[1758731981679,8.94698819,214.28,214.23,12.1389]
[1758731981880,7.78,214.28,214.23,12.1389]
[1758731982076,115.14,214.29,214.22,7.94]
[1758731982883,115.14,214.29,214.24,4.1987]
[1758731983083,115.14,214.29,214.25,7.94]
[1758731983285,122.92,214.29,214.25,7.94]
[1758731983487,115.14,214.29,214.21,3.35956251]
[1758731983690,115.14,214.29,214.22,7.94]
[1758731984088,115.14,214.29,214.26,7.94]
[1758731984387,7.78,214.32,214.22,65.3218]
[1758731984584,7.78,214.32,214.28,7.94]
[1758731985191,7.78,214.32,214.28,12.1379]
[1758731985691,7.78,214.32,214.29,7.94]
[1758731985990,115.9324482,214.35,214.3,4.1976]
[1758731986192,8.9468042,214.34,214.3,12.1376]
[1758731986492,7.78,214.34,214.3,12.1376]
[1758731987990,339.96,214.38,214.31,4.1973]
[1758731988187,7.78,214.37,214.31,4.1973]
[1758731991289,7.78,214.37,214.3,7.94]
[1758731992298,7.78,214.37,214.3,12.1376]
[1758731992702,7.78,214.37,214.3,7.94]
[1758731993505,3.35956251,214.42,214.3,7.94]
[1758731993506,7.78,214.44,214.31,65.2938]
[1758731993804,47.48636068,214.43,214.32,7.94]
[1758731994000,8.34636068,214.42,214.32,7.94]
[1758731994192,7.18,214.42,214.34,4.1968]
[1758731994996,7.18,214.42,214.32,7.94]
[1758731996197,7.18,214.42,214.36,4.1964]
[1758731998010,7.18,214.42,214.37,4.1961]
[1758731998211,46.32,214.43,214.37,4.1961]
[1758731998802,7.18,214.42,214.37,4.1961]
[1758731999306,46.32,214.43,214.37,4.1961]
[1758731999909,7.7,214.42,214.37,4.1961]
[1758732000111,46.32,214.43,214.37,4.1961]
[1758732000310,54.02,214.43,214.37,4.1961]
[1758732000707,46.32,214.43,214.37,4.1961]
[1758732000911,46.32,214.43,214.39,4.1959]
[1758732001410,7.7,214.42,214.39,4.1959]
[1758732001610,46.32,214.43,214.37,4.1962]
[1758732001914,46.32,214.43,214.35,10.03484782]
[1758732002101,9.84484782,214.42,214.36,4.1964]
[1758732002597,9.84484782,214.42,214.35,7.89]
[1758732002797,7.7,214.41,214.38,4.196]
[1758732003001,7.7,214.41,214.3,65.296]
[1758732003203,7.7,214.39,214.31,10.03484782]
[1758732004108,2.14484782,214.4,214.31,10.03484782]
[1758732004305,7.7,214.39,214.31,10.03484782]
[1758732004506,7.7,214.39,214.33,2.14484782]
[1758732004801,2.14484782,214.41,214.34,4.1968]
[1758732005002,7.7,214.4,214.34,4.1968]
[1758732005404,7.7,214.4,214.35,4.1966]
[1758732005609,9.84484782,214.41,214.35,4.1966]
[1758732006719,14.04044782,214.41,214.33,7.89]
[1758732006908,7.7,214.38,214.32,4.1971]
[1758732007513,9.84484782,214.39,214.33,4.197]
[1758732008115,2.14484782,214.39,214.31,2.14484782]
[1758732008309,7.7,214.4,214.33,2.14484782]
[1758732008614,7.7772769,214.5,214.33,2.14484782]
[1758732008615,7.7,214.46,214.39,10.03484782]
[1758732008811,7.7,214.51,214.42,7.89]
[1758732009015,1.16603055,214.5,214.43,2.14484782]
[1758732009210,1.16603055,214.49,214.42,12.0853]
[1758732009417,2.14484782,214.5,214.42,12.0853]
[1758732009713,1.16587967,214.49,214.43,4.195]
[1758732009913,2.14484782,214.5,214.43,4.195]
[1758732010116,1.16587967,214.49,214.43,4.195]
[1758732010310,7.7,214.51,214.44,6.33964782]
[1758732010510,1.16580536,214.5,214.44,4.1948]
[1758732010710,9.84484782,214.51,214.44,4.1948]
[1758732011008,1.16580536,214.5,214.42,14.23014782]
[1758732011214,3.31065318,214.49,214.42,7.89]
[1758732011512,8.86593541,214.48,214.3,65.2964]
[1758732011714,2.14484782,214.45,214.37,7.89]
[1758732011915,1.16617473,214.44,214.37,7.89]
[1758732012116,11.8947,214.46,214.37,7.89]
[1758732012311,3.31098507,214.45,214.37,7.89]
[1758732012512,1.16613725,214.44,214.37,7.89]